bitfinex-derivatives/quotes_SOLF0:USTF0_20241211
["timestamp","ask_amount","ask_price","bid_price","bid_amount"]
[1733880712405,0.9566,213.14,212.96,30.28900244]
[1733880712605,3.54,213.16,213.0,30.28900244]
[1733880712802,30.28900244,213.19,213.0,30.28900244]
[1733880713005,30.28900244,213.19,212.97,3.54]
[1733880713006,0.9566,213.26,213.08,30.28900244]
[1733880713311,48.8,213.39,213.12,30.28900244]
[1733880713501,30.28900244,213.33,213.16,30.28900244]
[1733880713706,0.9566,213.35,213.2,30.28900244]
[1733880713707,0.73919524,213.28,213.2,30.28900244]
[1733880713899,2.3426,213.3,213.21,3.54]
[1733880714204,33.82900244,213.37,213.21,3.54]
[1733880714407,2.3427,213.29,213.21,5.8835]
[1733880714604,2.3427,213.29,213.21,3.54]
[1733880714908,5.61689524,213.35,213.21,3.54]
[1733880715107,30.28900244,213.33,213.16,33.72900244]
[1733880715305,0.73888941,213.32,213.17,3.44]
[1733880715707,30.28900244,213.33,213.17,3.44]
[1733880715908,0.73895437,213.32,213.17,3.44]
[1733880716206,30.28900244,213.29,213.09,8.43635836]
[1733880716406,0.73911213,213.28,213.09,11.87635836]
[1733880716608,30.28900244,213.25,213.09,11.87635836]
[1733880716810,4.17911213,213.24,213.09,11.87635836]
[1733880717011,0.73911213,213.23,213.09,11.87635836]
[1733880717212,2.3435,213.22,213.09,11.87635836]
[1733880717409,3.44,213.32,213.15,30.28900244]
[1733880717609,2.343,213.26,213.17,2.3439]
[1733880717804,2.343,213.26,213.16,4.9214]
[1733880718109,3.44,213.32,213.16,4.9214]
[1733880718303,0.73896556,213.31,213.16,4.9214]
[1733880718504,0.73896556,213.3,213.16,4.9214]
[1733880718714,30.28900244,213.33,213.16,4.9214]
[1733880719010,4.8144,213.34,213.11,33.72900244]
[1733880719011,30.28900244,213.29,213.11,33.72900244]
[1733880719214,30.28900244,213.29,213.09,8.43635836]
[1733880719215,30.28900244,213.25,213.09,8.43635836]
[1733880719412,3.44,213.24,213.09,8.43635836]
[1733880719611,4.17915966,213.24,213.09,8.43635836]
[1733880719805,2.3435,213.21,213.13,2.3443]
[1733880720011,3.44,213.24,213.09,8.43635836]
[1733880720314,0.73922145,213.23,213.1,3.44]
[1733880720614,2.3437,213.2,213.12,2.3445]
[1733880720811,3.44,213.24,213.11,33.72900244]
[1733880721114,30.28900244,213.33,213.16,30.28900244]
[1733880721309,0.73900228,213.32,213.17,3.44]
[1733880721510,2.3433,213.23,213.18,1.39]
[1733880721712,3.44,213.27,213.1,3.44]
[1733880721911,0.73914037,213.26,213.1,3.44]
[1733880722106,0.73914037,213.26,213.1,4.83]
[1733880722415,0.73912061,213.25,213.1,4.83]
[1733880722614,3.44,213.27,213.17,2.3439]
[1733880722808,30.28900244,213.33,213.16,3.44]
[1733880723010,9.35755773,213.32,213.2,30.28900244]
[1733880723214,2.3423,213.32,213.23,2.3433]
[1733880723514,30.28900244,213.37,213.22,3.44]
[1733880723515,3.44,213.37,213.22,3.44]
[1733880723715,9.35591715,213.36,213.24,30.28900244]
[1733880723912,3.44,213.42,213.24,30.28900244]
[1733880724112,29.88092211,213.41,213.24,30.28900244]
[1733880724314,29.88092211,213.41,213.23,2.9141]
[1733880724315,2.3427,213.29,213.23,2.9141]
[1733880725511,3.44,213.36,213.23,2.9141]
[1733880725512,0.73890529,213.28,213.23,2.9141]
[1733880725719,3.44,213.36,213.23,2.9141]
[1733880725916,9.36041471,213.35,213.28,2.3427]
[1733880726112,0.73886374,213.34,213.28,2.3427]
[1733880726313,2.342,213.36,213.28,2.3427]
[1733880726513,2.3418,213.38,213.29,2.3426]
[1733880726814,2.3418,213.38,213.23,2.9141]
[1733880726815,0.73849597,213.37,213.23,2.9141]
[1733880727116,0.73849597,213.36,213.23,2.9141]
[1733880727317,20.47877693,213.35,213.23,1.4167]
[1733880727513,30.28900244,213.33,213.16,3.44]
[1733880727710,30.28900244,213.29,213.1,33.09440244]
[1733880727914,30.28900244,213.25,213.11,2.34620618]
[1733880728110,16.03175428,213.24,213.11,2.34620618]
[1733880728317,4.17849597,213.24,213.11,2.34620618]
[1733880728511,0.73849597,213.23,213.11,2.34620618]
[1733880728717,2.3436,213.21,213.12,2.3444]
[1733880729019,3.44,213.24,213.11,2.34620618]
[1733880729218,0.73920511,213.2,213.11,2.34620618]
[1733880729418,2.3444,213.13,213.11,2.34620618]
[1733880729623,30.28900244,213.13,212.97,1.3979]
[1733880729921,30.28900244,213.13,212.98,7.83526815]
[1733880729922,0.73946668,213.12,212.98,7.83526815]
[1733880730119,0.73946668,213.12,212.98,11.27526815]
[1733880730420,3.44,213.14,213.0,30.28900244]
[1733880730621,0.7394937,213.13,213.0,30.28900244]
[1733880731617,3.44,213.14,213.0,30.28900244]
[1733880731817,0.7395773,213.13,213.0,30.28900244]
[1733880732022,31.02857974,213.13,212.98,7.83526815]
[1733880732317,3.44,213.14,212.98,7.83526815]
[1733880732318,0.7395773,213.12,212.98,7.83526815]
[1733880732516,0.7395773,213.11,212.98,7.83526815]
[1733880733015,3.44,213.14,212.98,7.83526815]
[1733880733221,30.28900244,213.17,213.0,30.28900244]
[1733880733522,30.28900244,213.21,213.04,30.28900244]
[1733880733719,0.7394083,213.2,213.05,2.9034]
[1733880733920,30.28900244,213.17,213.05,1.4717]
[1733880734120,4.1794083,213.16,213.05,1.4717]
[1733880734422,0.7394083,213.15,212.99,4.8717]
[1733880734622,0.7394083,213.15,213.0,30.28900244]
[1733880734623,2.1350083,213.15,213.0,30.28900244]
[1733880734922,1.3956,213.15,213.0,31.76070244]
[1733880735117,3.44,213.16,213.0,31.76070244]
[1733880735321,1.3956,213.26,213.11,2.3446]
[1733880735322,5.7835,213.22,213.11,2.3446]
[1733880735526,31.02831573,213.21,213.08,3.44]
[1733880735720,30.28900244,213.21,213.08,3.44]
[1733880736026,0.73927212,213.2,213.08,3.44]
[1733880736519,0.73927212,213.2,213.04,30.28900244]
[1733880736725,30.28900244,213.17,213.0,1.4717]
[1733880737021,4.17927212,213.16,213.0,1.4717]
[1733880737324,0.73949504,213.15,213.0,31.76070244]
[1733880737522,3.44,213.18,213.04,30.28900244]
[1733880737718,3.44,213.18,213.0,1.4717]
[1733880737719,3.44,213.18,213.05,3.44]
[1733880738219,3.44,213.18,213.08,5.72412102]
[1733880738717,2.344,213.17,213.08,8.06902102]
[1733880739721,30.28900244,213.25,213.08,36.01312346]
[1733880739919,14.1,213.39,213.08,36.01312346]
[1733880739920,0.73924653,213.24,213.12,30.28900244]
[1733880740121,0.73924653,213.28,213.2,2.3436]
[1733880740328,2.3427,213.29,213.16,30.28900244]
[1733880740825,3.44,213.31,213.16,30.28900244]
[1733880741323,2.3427,213.29,213.16,30.28900244]
[1733880741520,31.68400244,213.33,213.16,30.28900244]
[1733880741521,30.28900244,213.33,213.16,30.28900244]
[1733880741718,0.0986,213.43,213.25,2.3431]
[1733880741719,3.44,213.36,213.25,2.3431]
[1733880741921,2.3422,213.34,213.22,3.44]
[1733880742123,3.44,213.36,213.24,30.28900244]
[1733880742327,3.44,213.36,213.25,1.4941]
[1733880742621,2.3424,213.32,213.25,1.4941]
[1733880743026,2.3424,213.32,213.08,30.28900244]
[1733880743027,30.28900244,213.33,213.16,3.44]
[1733880743225,3.44,213.36,213.16,3.44]
[1733880743426,0.73881411,213.35,213.16,3.44]
[1733880744030,0.73881411,213.35,213.2,5.63006519]
[1733880744427,0.73881411,213.35,213.16,3.44]
[1733880744625,30.28900244,213.3,213.14,5.56141958]
[1733880744831,30.28900244,213.26,213.08,30.28900244]
[1733880745027,30.28900244,213.26,213.13,1.4806]
[1733880745527,0.73909748,213.25,213.13,1.4806]
[1733880745726,0.73909748,213.25,213.03,1.4941]
[1733880745727,30.28900244,213.22,213.03,1.4941]
[1733880745931,30.28900244,213.18,213.03,1.4941]
[1733880746127,2.3447,213.11,213.03,7.05270624]
[1733880746330,3.48,213.17,213.03,7.05270624]
[1733880746641,2.3452,213.06,213.02,1.4547]
[1733880746829,33.76900244,213.1,213.01,1.4463]
[1733880747030,4.2197913,213.09,212.97,1.3731]
[1733880747332,0.73986902,213.08,212.93,1.4463]
[1733880747537,0.73986902,213.08,212.94,2.34807927]
[1733880747934,30.28900244,213.06,212.94,2.34807927]
[1733880748132,0.73986902,213.05,212.94,2.34807927]
[1733880748346,3.48,213.13,213.0,2.3458]
[1733880748629,0.73978435,213.12,212.96,30.28900244]
[1733880749428,3.48,213.11,212.96,30.28900244]
[1733880749632,0.73978435,213.1,212.96,30.28900244]
[1733880749840,3.48,213.11,213.01,2.3457]
[1733880750129,3.48,213.11,212.99,3.48]
[1733880750535,2.3449,213.09,212.99,5.8259]
[1733880750838,0.73977992,213.08,212.94,2.34807927]
[1733880751031,2.3451,213.07,212.96,2.3462]
[1733880751232,30.28900244,213.1,212.94,2.34807927]
[1733880751441,1.4691,213.16,212.96,30.28900244]
[1733880751635,0.73953321,213.15,212.96,30.28900244]
[1733880752137,0.73953321,213.15,212.94,2.34807927]
[1733880752138,2.3443,213.14,213.05,2.3452]
[1733880752336,3.48,213.16,213.02,3.48]
[1733880752533,3.48,213.16,213.04,30.28900244]
[1733880752729,3.48,213.16,213.03,6.3523]
[1733880752939,1.4391,213.28,213.03,6.3523]
[1733880752940,3.48,213.25,213.06,30.28900244]
[1733880753234,0.73927438,213.24,213.1,30.28900244]
[1733880753438,0.73927438,213.24,213.14,30.28900244]
[1733880753735,3.48,213.31,213.18,30.28900244]
[1733880753930,2.3422,213.34,213.24,2.3432]
[1733880754128,1.4391,213.37,213.22,30.28900244]
[1733880754333,0.73875294,213.36,213.23,1.4271]
[1733880754732,2.3435669,213.35,213.23,1.4271]
[1733880755829,2.3435669,213.35,213.24,3.48]
[1733880756032,2.3435669,213.35,213.26,5.76216084]
[1733880756338,0.0900669,213.35,213.26,36.05116328]
[1733880756638,30.28900244,213.44,213.26,36.05116328]
[1733880756639,0.09037676,213.34,213.27,1.4522]
[1733880756841,30.28900244,213.48,213.3,30.28900244]
[1733880757037,30.28900244,213.48,213.3,33.76900244]
[1733880757038,6.5605366,213.47,213.3,33.76900244]
[1733880757234,2.34235922,213.46,213.34,30.28900244]
[1733880757739,0.73828797,213.45,213.34,30.28900244]
[1733880757940,2.34235922,213.46,213.34,30.28900244]
[1733880758142,2.3411,213.43,213.34,30.28900244]
[1733880758336,2.34279823,213.42,213.34,30.28900244]
[1733880758836,2.34279823,213.42,213.3,33.76900244]
[1733880759247,2.34279823,213.42,213.35,2.342]
[1733880759842,2.341,213.44,213.35,2.342]
[1733880760140,33.76900244,213.48,213.3,33.76900244]
[1733880760336,2.3418,213.37,213.3,3.48]
[1733880760542,3.48,213.42,213.3,3.48]
[1733880760735,30.28900244,213.4,213.27,1.4522]
[1733880761038,9.36360542,213.39,213.27,1.4522]
[1733880761238,30.28900244,213.4,213.27,1.4522]
[1733880761239,9.36360542,213.38,213.27,1.4522]
[1733880761436,0.73861337,213.37,213.27,1.4522]
[1733880761633,3.48,213.47,213.3,30.28900244]
[1733880761841,8.62233337,213.46,213.3,30.28900244]
[1733880762042,2.3415,213.4,213.31,1.3577]
[1733880762439,3.48,213.42,213.31,1.3577]
[1733880762632,0.73844309,213.41,213.31,1.3577]
[1733880762834,0.73844309,213.41,213.27,1.4522]
[1733880763036,8.61899203,213.4,213.27,1.4522]
[1733880763238,2.3421,213.35,213.27,1.4522]
[1733880763942,3.48,213.4,213.27,1.4522]
[1733880764140,3.48,213.46,213.3,30.28900244]
[1733880764334,3.48,213.46,213.34,2.3421]
[1733880764335,2.3411,213.44,213.34,2.3421]
[1733880764541,2.3411,213.44,213.3,30.28900244]
[1733880764542,0.73838937,213.43,213.3,30.28900244]
[1733880765037,3.48,213.5,213.34,30.28900244]
[1733880765238,0.73822181,213.49,213.35,1.3967]
[1733880765444,2.3415,213.4,213.35,1.3967]
[1733880765644,30.28900244,213.51,213.29,30.28900244]
[1733880765645,3.48,213.44,213.29,30.28900244]
[1733880765835,4.21837705,213.43,213.29,30.28900244]
[1733880766035,4.95677452,213.43,213.29,30.28900244]
[1733880766342,9.34952013,213.42,213.28,1.3967]
[1733880766541,9.34844748,213.41,213.28,1.3967]
[1733880766736,2.3421,213.35,213.28,1.3967]
[1733880766937,3.48,213.36,213.26,5.76216084]
[1733880767144,30.28900244,213.39,213.26,5.76216084]
[1733880767145,4.21863825,213.35,213.26,5.76216084]
[1733880767344,0.73863825,213.34,213.22,1.367]
[1733880768648,0.73877074,213.33,213.25,30.28900244]
[1733880768942,2.342,213.36,213.28,2.3427]
[1733880769548,3.48,213.4,213.25,30.28900244]
[1733880769748,3.48,213.4,213.29,2.3426]
[1733880769749,2.3418,213.37,213.29,2.3426]
[1733880770151,2.3423,213.32,213.25,30.28900244]
[1733880770348,2.3423,213.32,213.23,1.4375]
[1733880770747,3.48,213.34,213.23,1.4375]
[1733880770951,3.48,213.33,213.23,1.4375]
[1733880771147,2.3428,213.28,213.23,1.4375]
[1733880771348,3.48,213.32,213.21,5.72615001]
[1733880771548,0.7388596,213.31,213.16,2.9638]
[1733880771751,2.3432,213.25,213.19,5.6887048]
[1733880772053,3.48,213.32,213.19,5.6887048]
[1733880772352,2.3429,213.27,213.19,5.6887048]
[1733880773351,2.343,213.26,213.19,8.0324048]
[1733880773748,3.48,213.32,213.16,2.9638]
[1733880773953,31.02789934,213.31,213.16,2.9638]
[1733880774250,0.7388969,213.3,213.16,2.9638]
[1733880775047,0.7388969,213.3,213.17,5.576834]
[1733880775346,4.1588969,213.3,213.18,30.28900244]
[1733880775548,2.343,213.27,213.17,5.576834]
[1733880775752,3.42,213.3,213.17,5.576834]
[1733880775948,0.73893694,213.29,213.17,5.576834]
[1733880776148,3.42,213.3,213.17,5.576834]
[1733880776347,0.73890814,213.29,213.17,5.576834]
[1733880776853,2.343,213.27,213.17,5.576834]
[1733880777049,3.42,213.31,213.18,30.28900244]
[1733880777753,0.73878146,213.3,213.18,30.28900244]
[1733880778553,2.343,213.26,213.18,30.28900244]
[1733880779150,3.42,213.31,213.18,30.28900244]
[1733880779351,0.73876229,213.3,213.18,30.28900244]
[1733880780058,3.42,213.32,213.18,30.28900244]
[1733880780259,0.7387598,213.31,213.18,30.28900244]
[1733880780654,4.1587598,213.3,213.18,30.28900244]
[1733880780854,3.42,213.3,213.18,30.28900244]
[1733880781154,2.343,213.26,213.19,2.3437]
[1733880781352,3.42,213.3,213.18,30.28900244]
[1733880781647,2.3429,213.27,213.2,2.3435]
[1733880782153,3.42,213.3,213.2,2.3435]
[1733880782453,2.3429,213.27,213.21,2.3435]
[1733880782645,3.42,213.3,213.18,30.28900244]
[1733880782849,2.343,213.26,213.19,2.3436]
[1733880783048,3.42,213.3,213.18,30.28900244]
[1733880783448,30.28900244,213.36,213.19,3.42]
[1733880783653,0.7387451,213.35,213.22,30.28900244]
[1733880783850,0.7387451,213.34,213.22,30.28900244]
[1733880784056,0.7387451,213.37,213.19,3.42]
[1733880784258,3.42,213.38,213.19,3.42]
[1733880784551,0.73868861,213.37,213.19,3.42]
[1733880784956,0.73864446,213.36,213.25,30.28900244]
[1733880785150,0.73864446,213.38,213.29,30.28900244]
[1733880785354,3.42,213.45,213.3,1.4458]
[1733880785654,6.22541636,213.44,213.3,2.8273]
[1733880785853,5.4870196,213.44,213.3,2.8273]
[1733880786053,30.28900244,213.4,213.3,1.3815]
[1733880786252,30.28900244,213.36,213.19,1.4458]
[1733880786452,30.28900244,213.36,213.22,5.69009671]
[1733880786953,2.3422,213.33,213.26,2.3429]
[1733880787154,7.7147,213.39,213.23,1.3815]
[1733880787354,0.73864047,213.38,213.23,1.3815]
[1733880787551,0.73864047,213.38,213.24,2.3432]
[1733880787747,0.73864047,213.38,213.23,1.3815]
[1733880788050,3.42,213.41,213.25,30.28900244]
[1733880788356,3.42,213.44,213.29,30.28900244]
[1733880788554,30.28900244,213.48,213.33,30.28900244]
[1733880788555,3.07963117,213.43,213.33,30.28900244]
[1733880788756,242.2561434,213.51,213.33,30.28900244]
[1733880788757,5.60353919,213.49,213.33,30.28900244]
[1733880789061,2.3409,213.45,213.39,2.3415]
[1733880789251,3.42,213.48,213.33,30.28900244]
[1733880789448,33.70900244,213.48,213.33,30.28900244]
[1733880789650,30.28900244,213.44,213.31,1.4603]
[1733880789849,0.73831391,213.43,213.31,1.4603]
[1733880790057,2.342,213.35,213.31,1.4603]
[1733880790456,3.42,213.42,213.31,1.4603]
[1733880790655,3.42,213.42,213.23,4.8015]
[1733880790656,30.28900244,213.4,213.23,4.8015]
[1733880790958,0.73848176,213.39,213.23,4.8015]
[1733880791157,2.3422,213.34,213.28,2.3428]
[1733880791461,2.8653,213.41,213.23,4.8015]
[1733880791753,2.3417,213.39,213.27,30.28900244]
[1733880791958,3.42,213.42,213.23,4.8015]
[1733880791959,48.74,213.47,213.31,30.28900244]
[1733880792155,3.42,213.46,213.32,2.8419]
[1733880792457,30.28900244,213.44,213.23,1.3815]
[1733880792660,30.28900244,213.4,213.23,1.3815]
[1733880792850,30.28900244,213.32,213.23,1.3815]
[1733880793050,4.15883643,213.31,213.16,5.6600127]
[1733880793355,2.343,213.26,213.16,5.6600127]
[1733880793552,3.42,213.3,213.16,35.94901514]
[1733880793754,9.01251776,213.3,213.13,1.4132]
[1733880793951,2.3438,213.19,213.13,1.4132]
[1733880794155,30.28900244,213.28,213.13,1.4132]
[1733880794156,3.42,213.23,213.13,1.4132]
[1733880794556,5.7634,213.23,213.13,3.7576]
[1733880794758,3.42,213.23,213.13,1.4132]
[1733880795156,30.28900244,213.28,213.13,1.4132]
[1733880795357,3.42,213.29,213.16,30.28900244]
[1733880795663,3.42,213.34,213.2,30.28900244]
[1733880795859,3.42,213.34,213.21,2.8571]
[1733880796059,0.73872757,213.33,213.21,2.8571]
[1733880796254,3.42,213.34,213.21,2.8571]
[1733880796656,0.73873018,213.33,213.21,2.8571]
[1733880797363,3.42,213.34,213.21,2.8571]
[1733880797564,30.14912408,213.33,213.21,2.8571]
[1733880797764,9.43331672,213.32,213.21,2.8571]
[1733880797969,3.42,213.34,213.21,5.2005]
[1733880798169,9.43346852,213.33,213.21,5.2005]
[1733880798361,8.69471476,213.32,213.21,2.8571]
[1733880798663,3.42,213.34,213.21,2.8571]
[1733880798962,2.3427,213.29,213.22,2.3434]
[1733880799173,3.42,213.34,213.21,2.8571]
[1733880799361,9.43707044,213.33,213.21,2.8571]
[1733880799667,3.42,213.34,213.26,2.3429]
[1733880799867,3.42,213.34,213.21,2.8571]
[1733880799868,8.69814728,213.33,213.22,3.42]
[1733880800062,8.69831451,213.32,213.22,3.42]
[1733880800263,3.42,213.34,213.24,2.3432]
[1733880800464,8.69791225,213.33,213.22,3.42]
[1733880800664,5.5887247,213.36,213.22,3.42]
[1733880800870,12.1177472,213.35,213.25,2.3431]
[1733880801064,3.42,213.35,213.22,3.42]
[1733880801466,3.42,213.35,213.23,5.58235079]
[1733880801668,8.69713384,213.34,213.23,5.58235079]
[1733880801868,3.42,213.35,213.23,5.58235079]
[1733880802065,30.28900244,213.32,213.13,1.4132]
[1733880802266,30.28900244,213.32,213.13,4.2695]
[1733880802267,30.16369909,213.31,213.13,4.2695]
[1733880802566,3.42,213.35,213.13,4.2695]
[1733880802567,30.28900244,213.28,213.13,4.2695]
[1733880802767,35.07570329,213.27,213.13,4.2695]
[1733880802968,30.17100612,213.26,213.13,4.2695]
[1733880803166,4.9055,213.27,213.07,33.70900244]
[1733880803167,21.39666889,213.25,213.07,33.70900244]
[1733880803366,9.43879862,213.24,213.07,33.70900244]
[1733880803668,30.28900244,213.2,213.03,30.28900244]
[1733880803867,30.28900244,213.2,213.0,3.4]
[1733880803868,4.13926708,213.19,213.0,3.4]
[1733880804070,2.3441,213.17,213.1,2.3447]
[1733880804371,3.4,213.16,213.1,2.3447]
[1733880804670,2.3443,213.14,213.06,2.3451]
[1733880804968,3.4,213.16,213.04,5.50865453]
[1733880805267,30.28900244,213.24,213.07,30.28900244]
[1733880805565,5.60958996,213.22,213.07,30.28900244]
[1733880805871,5.60958996,213.22,213.08,1.4455]
[1733880806369,2.3438,213.19,213.08,1.4455]
[1733880806875,2.3438,213.19,213.09,2.8683]
[1733880807068,3.4,213.22,213.11,30.28900244]
[1733880807268,30.28900244,213.33,213.11,30.28900244]
[1733880807467,30.13239414,213.32,213.15,30.28900244]
[1733880807668,30.28900244,213.37,213.19,30.28900244]
[1733880807870,29.38746151,213.36,213.2,1.4475]
[1733880808065,0.73873486,213.36,213.23,30.28900244]
[1733880808273,0.73873486,213.35,213.24,3.4]
[1733880808475,6.2679,213.39,213.24,3.4]
[1733880808676,0.73854665,213.38,213.26,2.343]
[1733880809371,0.73854665,213.38,213.24,3.4]
[1733880809372,0.73854665,213.38,213.24,5.7431]
[1733880809770,8.55814426,213.37,213.24,2.3431]
[1733880810069,6.2679,213.39,213.24,2.3431]
[1733880810070,0.73854665,213.36,213.24,2.3431]
[1733880810269,6.2679,213.39,213.21,2.8683]
[1733880810270,30.28900244,213.33,213.21,2.8683]
[1733880810477,4.13872066,213.32,213.21,2.8683]
[1733880810773,3.4,213.32,213.21,2.8683]
[1733880811370,3.4,213.32,213.21,1.4967]
[1733880811578,21.45092425,213.31,213.16,3.4]
[1733880811877,0.73874104,213.3,213.17,5.68550889]
[1733880812073,0.73874104,213.31,213.17,5.68550889]
[1733880812371,3.4,213.32,213.2,2.3436]
[1733880812372,2.3429,213.27,213.2,2.3436]
[1733880812577,3.4,213.34,213.19,30.28900244]
[1733880812775,0.73872747,213.33,213.19,30.28900244]
[1733880812971,3.08102747,213.33,213.25,2.3431]
[1733880813272,3.4,213.34,213.25,2.3431]
[1733880813474,0.73868195,213.33,213.25,2.3431]
[1733880813874,3.4,213.34,213.25,2.3431]
[1733880814073,0.73869582,213.33,213.25,2.3431]
[1733880814272,3.4,213.34,213.25,2.3431]
[1733880814475,0.73866651,213.33,213.25,2.3431]
[1733880814668,2.3423,213.32,213.25,2.3431]
[1733880815473,3.4,213.34,213.2,1.4639]
[1733880815671,5.7422,213.34,213.26,2.343]
[1733880815877,3.4,213.34,213.26,2.343]
[1733880816072,0.73865797,213.33,213.26,2.343]
[1733880816274,0.73865797,213.33,213.2,1.4639]
[1733880817073,2.3424,213.32,213.26,2.3429]
[1733880817779,2.3422,213.33,213.2,1.4639]
[1733880818276,0.73762136,213.32,213.2,1.4639]
[1733880818582,0.73756234,213.31,213.17,5.68550889]
[1733880818777,2.3431,213.25,213.17,5.68550889]
[1733880819375,3.4,213.29,213.17,5.68550889]
[1733880819683,0.73763802,213.28,213.17,5.68550889]
[1733880820881,0.73763802,213.28,213.11,1.4691]
[1733880821079,30.28900244,213.25,213.1,2.8888]
[1733880821278,8.99682758,213.29,213.1,2.34631628]
[1733880821279,30.28900244,213.17,213.1,2.34631628]
[1733880821578,4.13725804,213.16,213.1,2.34631628]
[1733880821880,0.73720993,213.15,213.1,0.05482425]
[1733880822378,194.9058434,213.24,213.1,0.05482425]
[1733880822379,3.4,213.19,213.1,0.05482425]
[1733880822582,9.92090224,213.18,213.1,0.05482425]
[1733880822777,9.83308569,213.17,213.1,0.05482425]
[1733880822979,3.4,213.19,213.1,0.05482425]
[1733880823185,19.01988558,213.18,213.1,0.05482425]
[1733880823483,2.3441,213.16,213.1,0.05482425]
[1733880823782,3.4,213.19,213.1,0.05482425]
[1733880823988,30.28900244,213.17,213.1,0.05482425]
[1733880824285,9.91050952,213.18,212.92,30.28900244]
[1733880824286,30.28900244,213.13,212.92,30.28900244]
[1733880824479,30.28900244,213.18,212.97,2.9074]
[1733880824480,2.3457,213.02,212.97,2.9074]
[1733880824679,3.4,213.06,212.97,2.9074]
[1733880824982,5.7453,213.06,212.98,2.3461]
[1733880825176,3.4,213.06,212.99,2.34752805]
[1733880825677,3.4,213.06,213.0,2.3458]
[1733880825883,3.4,213.1,212.99,2.34752805]
[1733880826078,30.28900244,213.13,212.99,2.34752805]
[1733880826279,0.73759778,213.12,212.99,2.34752805]
[1733880826485,2.3442,213.16,213.0,30.28900244]
[1733880826686,3.4,213.2,213.04,30.28900244]
[1733880826884,0.73781712,213.19,213.05,3.4]
[1733880827080,2.3439,213.18,213.09,2.3448]
[1733880827282,3.4,213.2,213.05,3.4]
[1733880827482,0.73791662,213.19,213.05,3.4]
[1733880827676,5.51362519,213.21,213.11,2.3445]
[1733880827677,3.08181662,213.18,213.11,2.3445]
[1733880827882,3.4,213.21,213.05,3.4]
[1733880828083,0.73810408,213.2,213.08,30.28900244]
[1733880828284,2.3439,213.18,213.08,30.28900244]
[1733880828585,3.4,213.21,213.08,30.28900244]
[1733880828786,3.4,213.25,213.09,1.4647]
[1733880829086,0.73817318,213.24,213.09,1.4647]
[1733880829286,0.73817318,213.24,213.1,1.4646]
[1733880829486,0.73817318,213.24,213.11,3.4]
[1733880829688,2.3434,213.22,213.15,2.3441]
[1733880830186,3.4,213.25,213.11,1.4577]
[1733880830388,9.8012824,213.24,213.11,1.4577]
[1733880830586,3.4,213.25,213.11,1.4577]
[1733880830784,0.73714141,213.24,213.12,30.28900244]
[1733880830980,195.5398369,213.38,213.16,30.28900244]
[1733880831187,195.5398369,213.38,213.13,3.4]
[1733880831188,12.14920268,213.35,213.2,30.28900244]
[1733880831386,2.3424,213.32,213.21,4.8439]
[1733880831886,2.3435669,213.35,213.21,1.4439]
[1733880832083,31.02649714,213.31,213.12,30.28900244]
[1733880832286,12.46993561,213.3,213.13,1.4439]
[1733880832485,2.343,213.26,213.13,1.4439]
[1733880832784,9.06993561,213.29,213.13,1.4439]
[1733880832785,0.73758675,213.25,213.13,1.4439]
[1733880833187,3.4,213.3,213.13,1.4439]
[1733880833485,9.8130776,213.29,213.13,1.4439]
[1733880833684,0.73771207,213.28,213.13,1.4439]
[1733880833992,0.73780101,213.27,213.13,1.4439]
[1733880834188,3.4,213.3,213.13,1.4439]
[1733880834389,2.3431,213.25,213.19,2.3437]
[1733880835392,3.4,213.3,213.21,2.3435]
[1733880835393,2.343,213.27,213.21,2.3435]
[1733880835584,3.4,213.3,213.19,5.56111785]
[1733880835890,19.00595459,213.29,213.19,5.56111785]
[1733880836086,9.08929672,213.29,213.19,5.56111785]
[1733880836286,9.08929672,213.28,213.19,35.85012029]
[1733880836487,3.34,213.35,213.2,3.34]
[1733880836693,30.95556245,213.34,213.2,3.34]
[1733880836887,2.3424,213.31,213.25,2.3431]
[1733880837289,2.3423,213.33,213.26,2.343]